Cogmind - Beta 16 @@@ ROGUE MODE // 2025.11.06 @ 14:02:02 Player: Zane Result: Destroyed by Piercing Trap Performance ------------- Evolutions (0) 0 Regions Visited (3) 600 Robots Destroyed (14) 70 Value Destroyed (394) 394 Prototype IDs (0) 0 Alien Tech Used (0) 0 Bonus (0) 0 TOTAL SCORE: 1064 Bonus ------- None Cogmind --------- Core Integrity 0/250 Matter 225/300 Energy 246/250 System Corruption 0% Temperature Cool (2) Movement Treading (160) Location -10/Subcaves Parts ------- > --- POWER (1) -------- Ion Engine > --- PROPULSION (2) --- Light Treads Spiked Treads > --- UTILITY (2) ------ Small Storage Unit Improved Terrain Scanner > --- WEAPON (2) ------- Particle Gun Battle Cannon > --- INVENTORY (8) ---- Subdweller Power Source Aluminum Leg Aluminum Leg Wheel Structural Scanner Scrap Shield Peak State ------------ > --- POWER ------------ Ion Engine > --- PROPULSION ------- Light Treads Spiked Treads > --- UTILITY ---------- Small Storage Unit Improved Terrain Scanner > --- WEAPON ----------- Particle Gun Battle Cannon > --- INVENTORY -------- Subdweller Power Source Aluminum Leg Aluminum Leg Wheel Structural Scanner Scrap Shield [Rating: 13] Favorites ----------- Power Ion Engine Engine Ion Engine Propulsion Aluminum Leg Treads Light Treads Leg Aluminum Leg Utility Small Storage Unit Device Seismic Detector Storage Small Storage Unit Protection Light Armor Plating Weapon Medium Laser Energy Gun Medium Laser Ballistic Gun Light Assault Rifle Ballistic Cannon Battle Cannon Launcher Grenade Launcher Build | -11 -10 -10 -10 ------- Run | Yrd Mat Min Sub Slots Evolved . | . . . . Power . | . . . . Propulsion . | . . . . Utility . | . . . . Weapon . | . . . . Parts Attached 22 | 7 6 2 7 Power 4 | 1 2 . 1 Engine 4 | 1 2 . 1 Core . | . . . . Reactor . | . . . . Propulsion 8 | 2 3 . 3 Treads 2 | . . . 2 Leg 6 | 2 3 . 1 Wheel . | . . . . Hover . | . . . . Flight . | . . . . Utility 4 | 2 1 . 1 Device 2 | 1 . . 1 Storage 1 | 1 . . . Processor . | . . . . Hackware . | . . . . Protection 1 | . 1 . . Artifact . | . . . . Weapon 6 | 2 . 2 2 Energy Gun 2 | 1 . . 1 Energy Cannon . | . . . . Ballistic Gun 2 | 1 . 1 . Ballistic Cannon 1 | . . . 1 Launcher 1 | . . 1 . Special Weapon . | . . . . Impact Weapon . | . . . . Slashing Weapon . | . . . . Piercing Weapon . | . . . . Special Melee Weapon . | . . . . Unidentified Prototypes . | . . . . Parts Lost 6 | . 1 1 4 Power 1 | . 1 . . Propulsion 1 | . . . 1 Utility 2 | . . 1 1 Weapon 2 | . . . 2 Highest Loss Streak 3 | . 1 1 3 To Critical Strikes 1 | . . . 1 Average Backups 6 | 3 6 7 6 Power 1 | . . 1 1 Propulsion 2 | 1 2 2 2 Utility 1 | . 2 2 1 Weapon 1 | . 1 1 . Tool/Special . | . . . . Unused Backups 7 | . 1 1 5 Power 1 | . . . 1 Propulsion 2 | . . 1 1 Utility 3 | . . . 3 Weapon 1 | . 1 . . Tool/Special . | . . . . Average Slot Usage (%) 99 | . 100 100 99 Engine 14 | . 14 14 14 Treads 9 | . . . 20 Leg 18 | . 28 28 7 Device 12 | . 13 7 12 Storage 14 | . 14 14 14 Protection 1 | . . 6 . Energy Gun 16 | . 14 8 21 Ballistic Gun 8 | . 14 14 1 Ballistic Cannon 2 | . . . 4 Launcher 1 | . . 5 . Peak Build Rating 13 | 7 8 8 13 Average Rating 9 | 5 7 7 11 On Entrance 5 | . 7 8 8 Avg Prop Armor Cover (%) 8 | . . . 8 Naked Turns . | . . . . Heaviest Build 17 | 12 14 17 17 Greatest Support 40 | 20 20 20 40 Greatest Overweight (x) 2 | 2 . . . Average Overweight (x) . | . . . . Largest Inventory Capacity 8 | 8 8 8 8 Average Capacity 7 | 7 8 8 8 Most Carried 8 | 5 8 8 8 Average Carried 6 | 3 6 7 7 Final Capacity 8 | 8 8 8 8 Final Carried 8 | 5 8 7 7 Class Distribution -------------------- 62% | Mutant 37% | Scavenger-Mutant Dominant Class ---------------- Mutant | -10/Materials Scavenger-Mutant | -10/Mines Mutant | -10/Subcaves Resources | -11 -10 -10 -10 ----------- Run | Yrd Mat Min Sub Matter Collected 564 | 190 207 24 143 Remotely . | . . . . Salvage Created 503 | 50 219 33 201 Parts 26 | 5 14 . 7 Haulers Intercepted . | . . . . Recyclers Shooed . | . . . . Parts Field Recycled . | . . . . Retrieved Matter . | . . . . Parts Self-Destructed 7 | . . . 7 Prevented . | . . . . Parts Restored . | . . . . Kills | -11 -10 -10 -10 ------- Run | Yrd Mat Min Sub Combat Hostiles Destroyed 17 | . 7 5 5 Guns 13 | . 7 2 4 AOE 4 | . . 3 1 Classes Destroyed 6 | 1 2 1 2 Tunneler 2 | 2 . . . Swarmer 3 | . 3 . . Grunt 6 | . 4 . 2 Artisan 1 | . . . 1 Subdweller 3 | . . . 3 Assembled 5 | . . 5 . Best Kill Streak 5 | 1 3 5 5 Combat Bots Only 5 | . 3 5 5 Max Kills in Single Turn 2 | 1 1 2 1 Gunslinging . | . . . . Exploded 2 | . . 2 1 Melee . | . . . . Uniques/NPCs Destroyed . | . . . . Combat | -11 -10 -10 -10 -------- Run | Yrd Mat Min Sub Hostile Shots Fired 96 | . 50 12 34 Missed 22 | . 12 4 6 Hits 74 | . 38 8 28 Melee 3 | . . 3 . Projectile 71 | . 38 5 28 Critical Strikes 3 | . 1 . 2 Damage Taken 1078 | . 378 166 534 Core 256 | . 89 6 161 Absorbed by Shields . | . . . . Core Remaining (%) 100 | 100 . . . Volleys Fired 65 | 3 18 12 32 Largest 2 | 2 2 2 2 Hottest 115 | 70 70 70 115 Shots Fired 123 | 6 36 18 63 Gun 105 | 6 36 16 47 Cannon 13 | . . . 13 Launcher 5 | . . 2 3 Special . | . . . . Kinetic 56 | 3 18 12 23 Thermal 62 | 3 18 4 37 Explosive 5 | . . 2 3 Electromagnetic . | . . . . Robot Hit Streak 10 | 4 9 4 10 Robot Miss Streak 4 | . 3 4 3 Penetration Max . | . . . . Secondary Targets 2 | . . . 2 Max Gunslinging Chain 1 | . . . 1 Shots Hit Robots 58 | 4 22 7 25 Core Hits 37 | 2 13 10 12 Critical Kills . | . . . . Critical Parts Destroyed . | . . . . Critical Strikes 2 | . 1 . 1 Burn 2 | . 1 . 1 Melee Attacks . | . . . . Impact . | . . . . Slashing . | . . . . Piercing . | . . . . Sneak Attacks . | . . . . Combat Hostiles . | . . . . Follow-up Attacks . | . . . . Damage Inflicted 1091 | 52 267 214 558 Guns 656 | 52 256 59 289 Cannons . | . . . . Explosions 424 | . . 155 269 Melee . | . . . . Ramming 11 | . 11 . . Kinetic 173 | 14 81 46 32 Thermal 483 | 38 175 13 257 Explosive 424 | . . 155 269 Electromagnetic . | . . . . Impact . | . . . . Slashing . | . . . . Piercing . | . . . . Highest Corruption . | . . . . Average Corruption . | . . . . Corruption Purged . | . . . . Corruption Blocked . | . . . . Overload Shots . | . . . . Overflow Damage . | . . . . Projectiles . | . . . . Explosions . | . . . . Melee . | . . . . Knockbacks . | . . . . Impact . | . . . . Kinetic . | . . . . Secondary . | . . . . Self-Inflicted Damage 13 | . . 13 . Shots 1 | . . 1 . Rammed . | . . . . Targets Rammed 4 | . 4 . . Kicked 4 | . 4 . . Crushed . | . . . . Highest Temperature 186 | 40 186 110 25 Average Temperature 42 | 19 61 36 10 Received Heat Transfer 315 | . 138 . 177 Siege Activations . | . . . . Martial Activations . | . . . . Shielding Activations . | . . . . Robots Disrupted . | . . . . Combat Hostiles . | . . . . Robots Corrupted . | . . . . Combat Hostiles . | . . . . Parts Fried . | . . . . Impact Corruptions . | . . . . Robots Melted . | . . . . Combat Hostiles . | . . . . Parts Melted 2 | . . . 2 Heat Transferred 1443 | 111 592 37 703 Parts Sabotaged . | . . . . Parts Stolen . | . . . . Parts Stripped . | . . . . Power Chain Reactions . | . . . . Alert | -11 -10 -10 -10 ------- Run | Yrd Mat Min Sub Maximum Alert Level . | . . . . Low Security (%) 100 | 100 100 100 . Level 1 . | . . . . Level 2 . | . . . . Level 3 . | . . . . Level 4 . | . . . . Level 5 . | . . . . High Security . | . . . . Max Security . | . . . . Peak Influence 109 | 5 109 15 . Initial 15 | . . 15 . Average 35 | 1 58 2 . Influence Increases 327 | 10 253 14 50 Destroy 0b10 Robot/C 180 | . 140 . 40 Destroy 0b10 Robot/NC 10 | 10 . . . Destroy Leader 40 | . 30 . 10 Successful Hack 23 | . 23 . . Destroy Structure 14 | . . 14 . Lose Combat Pursuer 60 | . 60 . . Influence Decreases 327 | 10 214 53 50 Entered New Map 24 | . . 24 . Time Decay 263 | 10 204 29 20 Lost Part 40 | . 10 . 30 Squads Dispatched 1 | . 1 . . Investigation . | . . . . Extermination . | . . . . Reinforcement 1 | . 1 . . Assault . | . . . . Garrison . | . . . . Intercept . | . . . . Searches Triggered . | . . . . Construction Impeded . | . . . . Haulers Reinforced . | . . . . Active Scanning Responses . | . . . . Cargo Convoy Interrupts . | . . . . Stealth | -11 -10 -10 -10 --------- Run | Yrd Mat Min Sub Distress Signals 1 | . 1 . . Communications Jammed . | . . . . Distress Signals . | . . . . Times Spotted 26 | . 16 5 5 Peak Tracking Total 5 | . 5 4 3 Tactical Retreats 3 | . 3 . . Traps | -11 -10 -10 -10 ------- Run | Yrd Mat Min Sub Traps Triggered 3 | . . . 3 Indirectly . | . . . . Trap Hack Attempts . | . . . . Triggered . | . . . . Disarmed . | . . . . Reprogrammed 1 | . 1 . . Reused . | . . . . Traps Extracted . | . . . . Installed . | . . . . Triggered . | . . . . Machines | -11 -10 -10 -10 ---------- Run | Yrd Mat Min Sub Machines Disabled . | . . . . Max in Single Turn . | . . . . Machines Repaired . | . . . . Machines Dismantled . | . . . . Machines Sabotaged . | . . . . Overloaded Fab Kills . | . . . . Hacking | -11 -10 -10 -10 --------- Run | Yrd Mat Min Sub Machines Accessed 6 | . 6 . . Terminals 6 | . 6 . . Fabricators . | . . . . Repair Stations . | . . . . Recycling Units . | . . . . Scanalyzers . | . . . . Garrison Access . | . . . . Total Hacks 17 | . 17 . . Successful 6 | . 6 . . Failed 11 | . 11 . . Catastrophic 2 | . 2 . . Database Lockouts . | . . . . Manual 1 | . 1 . . Terminals 17 | . 17 . . Fabricators . | . . . . Repair Stations . | . . . . Recycling Units . | . . . . Scanalyzers . | . . . . Garrison Access . | . . . . Terminal Hacks 6 | . 6 . . Robot Analysis 1 | . 1 . . Locate Traps 2 | . 2 . . Reprogram Traps 1 | . 1 . . Hauler Manifests 1 | . 1 . . Zone Layout 1 | . 1 . . Fabricator Hacks . | . . . . Repair Station Hacks . | . . . . Recycling Unit Hacks . | . . . . Scanalyzer . | . . . . Garrison Access Hacks . | . . . . Unauthorized Hacks . | . . . . Terminals . | . . . . Fabricators . | . . . . Repair Stations . | . . . . Recycling Units . | . . . . Scanalyzers . | . . . . Garrison Access . | . . . . Data Cores Recovered . | . . . . Used . | . . . . Hacking Detections 6 | . 6 . . Full Trace Events . | . . . . Feedback Events . | . . . . Feedback Blocked . | . . . . Robot Schematics Acquired . | . . . . Robots Built . | . . . . Authchips . | . . . . Time . | . . . . Total Robot Build Rating . | . . . . Part Schematics Acquired . | . . . . Parts Built . | . . . . Authchips . | . . . . Time . | . . . . Total Part Build Rating . | . . . . Part Studies Acquired . | . . . . Parts Repaired . | . . . . Time . | . . . . Parts Recycled . | . . . . Recycled Matter . | . . . . Retrieved Matter . | . . . . Retrieved Components . | . . . . Parts Scanalyzed . | . . . . Part Schematics Acquired . | . . . . Parts Damaged . | . . . . Bothacking | -11 -10 -10 -10 ------------ Run | Yrd Mat Min Sub Used RIF Installer . | . . . . Robots Hacked . | . . . . Non-combat . | . . . . Combat . | . . . . Robot Hacks Applied . | . . . . Relay Couplers Released . | . . . . Fabnet Peak Effective % . | . . . . Robots Rewired . | . . . . Allies Hacked . | . . . . Hacks Repelled . | . . . . Allies | -11 -10 -10 -10 -------- Run | Yrd Mat Min Sub Total Allies . | . . . . Largest Group . | . . . . Highest-Rated Group . | . . . . Highest-Rated Ally . | . . . . Total Orders . | . . . . Ally Attacks . | . . . . Total Damage . | . . . . Kills . | . . . . Allies Corrupted . | . . . . Allies Melted . | . . . . Intel | -11 -10 -10 -10 ------- Run | Yrd Mat Min Sub Active Infowar (turns) 1228 | 6 473 142 607 Terrain 607 | . . . 607 Seismic 621 | 6 473 142 . Robot Analysis Total 1 | . 1 . . Derelict Logs Recovered 1 | . . . 1 Drone Launches . | . . . . Drone Recoveries . | . . . . Exploration | -11 -10 -10 -10 ------------- Run | Yrd Mat Min Sub Turns Passed 1482 | 81 493 257 651 Spaces Moved 846 | 47 312 166 321 Core 8 | 8 . . . Treads 295 | . . . 295 Legs 543 | 39 312 166 26 Wheels . | . . . . Hover . | . . . . Flight . | . . . . Fastest Speed 50 | 50 120 120 120 Average Speed 133 | 120 120 120 156 Slowest Speed 190 | 190 120 120 160 Overloaded Moves . | . . . . Propulsion Burnouts . | . . . . Robots Hopped . | . . . . Potential Cave-ins . | . . . . Cave-ins Triggered . | . . . . Exploration Rate (%) 33 | 3 65 38 27 Regions Visited 3 Branch Regions 2 Pre-discovered Areas 2 | . . . 2 Known Exits Taken . | . . . . Unknown Exits Taken 3 | 1 1 1 . Scrap Searched 2 | . . 2 . Spaces Dug . | . . . . Terrain Destroyed 32 | . . 20 12 Melee . | . . . . Projectile . | . . . . AOE 32 | . . 20 12 Terrain Rammed . | . . . . Walls Destroyed . | . . . . Machines Disabled . | . . . . Actions | -11 -10 -10 -10 --------- Run | Yrd Mat Min Sub Total 1076 | 62 400 208 406 Wait 110 | 1 50 24 35 Move 843 | 46 311 165 321 Hop . | . . . . Pick Up 16 | 5 5 1 5 Fast Attach 9 | 7 . 1 1 Attach 5 | . 1 . 4 Detach 1 | . . . 1 Swap 12 | . 6 2 4 Drop 11 | . 5 3 3 Fire 65 | 3 18 12 32 Melee . | . . . . Ram . | . . . . Kick 4 | . 4 . . Crush . | . . . . Escape Stasis . | . . . . Rewire . | . . . . Trap . | . . . . Miscellaneous . | . . . . Route ------- -11/Scrapyard -10/Materials (discovered 2 exits: [*Mat] / [*Min]) -10/Mines (discovered 2 exits: [*Mat] / [*Sub]) -10/Subcaves History --------- Turn | Location | Event 28 | -11/Scrapyard | Discovered new exit (range 14) 82 | -11/Scrapyard | Entered Materials 305 | -10/Materials | Build established: Mutant 370 | -10/Materials | Discovered new exit (range 8) 487 | -10/Materials | Discovered new exit (range 2) 575 | -10/Materials | Entered Mines 612 | -10/Mines | Discovered new exit (range 8) 676 | -10/Mines | YI-UF0 nonchalantly dropped a Grenade Launcher on the ground 699 | -10/Mines | Assembled infested the area 708 | -10/Mines | Build established: Scavenger-Mutant 829 | -10/Mines | Discovered new exit (range 3) 832 | -10/Mines | Entered Subcaves 833 | -10/Subcaves | Approached by a straggling Scientist 854 | -10/Subcaves | Core integrity fell below 50% 884 | -10/Subcaves | Core integrity fell below 20% 886 | -10/Subcaves | Ambushed by angry Subdweller bent on revenge 922 | -10/Subcaves | Lost 3 parts (1n1u1w) 947 | -10/Subcaves | Learned location of Storage (-9) 1030 | -10/Subcaves | Learned location of Zion (-6) 1030 | -10/Subcaves | Met a Zionite searching for "candidates" 1069 | -10/Subcaves | Shifting Twisted Machinery released Spk. Treads 1075 | -10/Subcaves | Shifting Twisted Machinery released Battle Cannon 1338 | -10/Subcaves | A swath of the cavern ceiling suddenly collapsed 1377 | -10/Subcaves | Shifting Twisted Machinery released Sub. Power Source 1379 | -10/Subcaves | Build established: Mutant 1483 | -10/Subcaves | Destroyed by Piercing Trap Last Messages --------------- 01270_ HG-4G5(u) builds Twisted Machinery. 01281_ HG-4G5(u) tweaks Twisted Machinery. 8G-CEE(c): "I think it's somewhere west of here" 01303_ HG-4G5(u) tweaks Twisted Machinery. 01315_ HG-4G5(u) builds Twisted Machinery. A swath of the cavern ceiling suddenly collapses. 8G-CEE(c): "I think it's somewhere southwest of here" Sub. Power Source falls loose from the Twisted Machinery. 8G-CEE(c): "I think it's somewhere southwest of here" 01437_ HG-4G5(u) tweaks Twisted Machinery. 8G-CEE(c): "I think it's somewhere southwest of here" 01472_ HG-4G5(u) builds Twisted Machinery. 01483_ Triggered Piercing Trap. 01483_ Spikes shoot up from the floor. [Achievement: Back For More] Map ----- +----------------------------------------------------+ | ?????????????????????????????????????????????????? | | ????????????????????????????????????????????#????? | | ?????????????????????????????????????????????????? | | ????????????????????????????????????#???#???#???#? | | ????????????????????????????????????????#?????#??? | | ?????????????????????????????????????????????????? | | ???????????????????????????????????????#??#??#???# | | ??????????????????????????????????????????#??????? | | ?????????????????????????????????????????#?#?##??? | | ???????????????????????????????????#?????????????? | | ??????????????????????????????????????????????#?#? | | ??????????????????????????????????????????####??## | | ??????????????????????????##?????????????## #### | | ????????????????????????? #????????????## | | ?????????????????????????? ??????????#?#?# | | ?????????????????????????? ?#?????????### | | ???????????????????????#?? ???????????## # | | ??????????????????????#?## ???#????###""" | | ????????????????????????# #????#?#??# """ | | ?????????????????? ????? #??????????#""##" | | ????????????????#??????? ##?#?#######""### #### | | ????????????????????????# #### #??# ""#### ##?# | | ???????????????????????## ###"" # #?# | | ??????????????????????### ?" ##"" "" ##?? | | ??????????????????????# ??##"" ### ## #??? | | ??????????????????????# @###???#""### ####??? | | ??????????????? ?#????## ##????#"" ##?????? | | ???????????????????????## ###### """ ###????##? | | ?????????????????????#?# "" ##??#####? | | ??????????????? ?????#?# "" #### ##?? | | ???????????????????????## ## c "" #?? | | ??????????????????????#?#### "" #?? | | ??????????????????????????## # ### | | ???????????????????????????## ## #? | | ????????????????????????????# ### ## ## | | ????????????????????????????## ##?# ### # | | ????????????????????????#??#?####??# #### | | ?????????????????????????#???#?????###### | | ?????????????????????#?????????????#??## % ## | | ??????????????????????#?#????????#?#### #?# | | ????????????????????????????????#?#?# ## %#??# | | ????????????????????????????????#???# % ## % ##?? | | ????????????????????????????????#??### ### ##? | | ?????????????????????????#???????????###?# #?? | | ?????????????????????????????????????###?# ##?? | | ???????????????????????????????????### ### ##?? | | ???????????????????????????????????# #??? | | ????????????????????????????#??????## ###?? | | ????????????????????????????????????## % #???? | | ???????????????????????????????????###% % ##???? | +----------------------------------------------------+ Best States ------------- Heat Dissipation 25 Energy Generation 10 Energy Capacity 250 Matter Stores 300 Matter Capacity 300 Sight Range 16 Terrain Scan Range 16 Terrain Scan Density 10 Armor Coverage 150 Evasion (%) 55 Recoil Reduction 2 Item Schematics ----------------- None Robot Schematics ------------------ None Fabricated ------------ Nothing Repaired ---------- Nothing Studied --------- None Alien Tech Used ----------------- None Achievements -------------- Back For More Challenges ------------ None Game ------ Seed ThrowingDeepLance Manual? 0 Play Time 00:21:45 Cumulative 37.5 hours Start 2025.11.06 @ 12:25:26 End 2025.11.06 @ 14:02:02 Sessions 1 Manual Loads 0 Difficulty Rogue Special Mode None Game No. 50 Rogue 50 Adventurer 0 Explorer 0 Win Type - Total 0 Types 0/0/0/0/0/0/0/0/0/0 Lore% 40 Gallery% 33 Achievement% 17 Wizard Run 0 Options --------- Layout 1 ASCII 0 Keyboard 0 Movement Numpad Keybinds 0 Fullscreen 1 Font 24/Smallcaps Map View 50x35 Zoom Use 0% Tactical HUD 1 Map Filters NONE Filters NONE Steam 1 RUN: 437882c7-421f-441d-b499-9bbd6ccd3ff1